fUSD/lending_fUSD_20250428
["ID","MTS","AMOUNT","RATE_DAILY","PERIOD"]
[359202818,1745807445505,-1223.05006933,0.000199,2]
[359202819,1745807445515,-300.0,0.00019975,2]
[359202820,1745807445525,-300.0,0.00019976,2]
[359202821,1745807445534,-151.0,0.00019977,2]
[359202822,1745807445543,-544.54,0.00019977,2]
[359202823,1745807445553,-152.0,0.00019985,2]
[359202824,1745807445562,-320.29767217,0.00019986,2]
[359202825,1745807445573,-400.0,0.00019986,2]
[359202826,1745807445750,-1435.71016166,0.00019986,2]
[359202855,1745807532555,1058.72117983,0.00041095,30]
[359202856,1745807544992,200.0,0.00019113,2]
[359202857,1745807611730,150.0,0.00019,2]
[359202858,1745807620691,150.0,0.00019,2]
[359202859,1745807632081,150.0,0.00019,2]
[359202860,1745807640077,169.59,0.00019113,2]
[359202861,1745807646671,200.0,0.00019,2]
[359202863,1745807728329,431.36,0.00019134,2]
[359202864,1745807911703,473.0,0.00041,30]
[359202865,1745807922556,250.0,0.00019073,2]
[359202866,1745808016537,150.0,0.00019063,7]
[359202867,1745808018350,2663.04,0.00019073,2]
[359202868,1745808041707,1000.0,0.00019072,2]
[359202869,1745808042124,2329.36,0.0004109,30]
[359202870,1745808070287,162.44,0.00041095,120]
[359202871,1745808116870,480.0,0.00041095,30]
[359202872,1745808116956,480.0,0.00041095,30]
[359202873,1745808117198,480.0,0.00041095,30]
[359202874,1745808117428,560.0,0.00041095,30]
[359202875,1745808162984,319.22,0.00019052,2]
[359202876,1745808167361,509.90985621,0.00017134,2]
[359202877,1745808167384,1136.66014379,0.00017134,2]
[359202878,1745808183458,3605.50971242,0.00019043,2]
[359202879,1745808183481,4742.16985621,0.00019043,2]
[359202880,1745808183503,4742.16985621,0.00019043,2]
[359202881,1745808183525,4742.16985621,0.00019043,2]
[359202882,1745808183547,4742.16985621,0.00019043,2]
[359202883,1745808183571,1325.81086274,0.00019043,2]
[359202884,1745808315735,1401.96,0.0001898,2]
[359202889,1745808389468,657.48,0.00018971,2]
[359202893,1745808494732,250.0,0.00017,2]
[359202894,1745808495558,191.95000945,0.00019,2]
[359202895,1745808495580,108.04999055,0.00019,2]
[359202896,1745808498702,-150.0,0.00019398,2]
[359202897,1745808504870,-150.0,0.00019398,2]
[359202898,1745808511669,-153.23236294,0.00019398,2]
[359202913,1745808615751,200.88388535,0.00019284,2]
[359202914,1745808631684,-998.51788266,0.00019398,2]
[359202943,1745808637583,-194.8197544,0.00019398,2]
[359202944,1745808637593,-200.0,0.00019499,2]
[359202945,1745808637602,-200.0,0.00019599,2]
[359202946,1745808637612,-200.0,0.00019679,2]
[359202947,1745808637621,-217.61549068,0.00019799,2]
[359202948,1745808637631,-74.94049317,0.000198,2]
[359202949,1745808637643,-142.67499749,0.000198,2]
[359202950,1745808637654,-217.61549066,0.000198,2]
[359202951,1745808637663,-150.0,0.00019863,2]
[359202952,1745808637672,-113.85719045,0.00019886,3]
[359202953,1745808637684,-78.8856523,0.00019886,3]
[359202954,1745808637694,-1000.0,0.00019886,2]
[359202955,1745808637703,-300.0,0.00019898,2]
[359202956,1745808637712,-1200.0,0.00019899,2]
[359202957,1745808637722,-300.0,0.00019899,2]
[359202958,1745808637731,-1215.45102191,0.000199,2]
[359202959,1745808637741,-171.06377071,0.000199,2]
[359202960,1745808637750,-91.62197398,0.000199,2]
[359203125,1745808646065,-868.35339152,0.000199,2]
[359203222,1745808674053,2000.0,0.00038356,60]
[359203223,1745808674305,2000.0,0.00038356,60]
[359203224,1745808674610,2000.0,0.00038356,60]
[359203225,1745808674897,761.255208,0.00038356,60]
[359203226,1745808714693,200.0,0.00019043,2]
[359203227,1745808726600,300.0,0.00041095,30]
[359203228,1745808727245,207.4,0.00041096,30]
[359203229,1745808738847,300.0,0.00041095,30]
[359203230,1745808809059,7435.9,0.00041096,30]
[359203231,1745808841746,597.98511757,0.00018947,2]
[359203232,1745808841767,1880.60488243,0.00018947,2]
[359203233,1745808947418,10000.0,0.00041095,30]
[359203234,1745808968631,155.67,0.00041095,120]
[359203235,1745808978069,2000.0,0.00038356,60]
[359203236,1745808978783,1409.153383,0.00038356,60]
[359203237,1745809016573,150.0,0.00041095,120]
[359203238,1745809054534,668.90414305,0.00041,30]
[359203239,1745809097480,1000.0,0.00018883,2]
[359203240,1745809110922,435.632,0.00037641,49]
[359203241,1745809190651,-539.67618744,0.00019552,2]
[359203242,1745809193893,-314.08469051,0.00019552,2]
[359203243,1745809198215,-237.67912205,0.00019552,2]
[359203244,1745809215819,150.072761,0.00039822,60]
[359203245,1745809216168,150.072761,0.00038548,60]
[359203246,1745809217158,150.072761,0.00041095,30]
[359203247,1745809219071,150.072761,0.0002,5]
[359203248,1745809219527,150.072761,0.0002,5]
[359203249,1745809219908,150.072761,0.0004109,31]
[359203250,1745809220210,150.072761,0.00040742,31]
[359203251,1745809234018,1861.56497378,0.00018875,2]
[359203252,1745809234042,2138.43502622,0.00018875,2]
[359203253,1745809246359,250.0,0.00018871,2]
[359203254,1745809257622,10000.0,0.00041,30]
[359203255,1745809274182,1692.969758,0.00038356,60]
[359203256,1745809300227,-230.39328925,0.00019452,2]
[359203257,1745809304467,-13.93337716,0.00019452,2]
[359203258,1745809306026,1056.434684,0.00019355,2]
[359203259,1745809309642,1297.30014599,0.00016936,2]
[359203260,1745809309664,297.58985401,0.00016936,2]
[359203261,1745809309845,1594.89,0.000192,2]
[359203262,1745809388412,2849.6900022,0.00018849,2]
[359203263,1745809388439,10506.5199978,0.00018849,2]
[359203264,1745809429087,455.43,0.00018848,2]
[359203265,1745809458689,1206.18,0.00018833,2]
[359203266,1745809498631,480.0,0.00041095,30]
[359203267,1745809498876,519.5968,0.00041095,30]
[359203270,1745809556231,23900.0,0.00018803,2]
[359203271,1745809576142,2000.0,0.00038356,90]
[359203272,1745809576503,2000.0,0.00038356,90]
[359203273,1745809576801,1651.735308,0.00038356,90]
[359203274,1745809591874,150.0,0.00018803,7]
[359203275,1745809610752,254.09,0.00041096,30]
[359203312,1745809776336,173.22,0.00018815,2]
[359203313,1745809831719,-916.06829668,0.0001955,2]
[359203314,1745809831772,-283.93170332,0.0001955,2]
[359203315,1745809831781,-2564.70012219,0.00019551,2]
[359203316,1745809831790,-300.0,0.00019551,2]
[359203317,1745809831800,-2105.1902414,0.00019552,2]
[359203318,1745809831809,-151.0,0.00019552,2]
[359203319,1745809831818,-1183.0,0.000196,2]
[359203320,1745809831828,-2372.8341128,0.00019686,2]
[359203321,1745809831838,-2372.83411277,0.0001971,2]
[359203322,1745809831848,-2372.83411277,0.00019734,2]
[359203323,1745809831858,-316.7437,0.00019747,2]
[359203324,1745809831867,-3928.9749,0.00019747,2]
[359203325,1745809831877,-259.9307,0.00019747,2]
[359203326,1745809831886,-200.0,0.0001975,2]
[359203327,1745809831895,-500.0,0.00019753,2]
[359203328,1745809831904,-1000.0,0.00019756,2]
[359203329,1745809831914,-167.74549875,0.00019762,2]
[359203330,1745809831924,-500.0,0.00019773,2]
[359203331,1745809831934,-180.821381,0.00019773,2]
[359203332,1745809831943,-500.0,0.00019773,2]
[359203333,1745809831953,-504.92636826,0.00019773,2]
[359203334,1745809831962,-163.55088441,0.00019773,2]
[359203335,1745809831971,-500.0,0.00019773,2]
[359203336,1745809831981,-506.99732581,0.00019773,2]
[359203337,1745809831990,-364.4830524,0.00019773,2]
[359203338,1745809831999,-500.0,0.00019773,2]
[359203339,1745809832009,-152.23,0.00019776,2]
[359203340,1745809832018,-850.0,0.00019783,2]
[359203341,1745809832028,-214.31414543,0.00019785,2]
[359203342,1745809832038,-201.60338725,0.00019785,2]
[359203343,1745809832047,-500.0,0.00019785,2]
[359203344,1745809832057,-231.04416499,0.00019785,2]
[359203345,1745809832068,-500.0,0.00019785,2]
[359203346,1745809832079,-500.0,0.00019785,2]
[359203347,1745809832089,-500.0,0.00019785,2]
[359203349,1745809832100,-500.0,0.00019785,2]
[359203351,1745809832109,-500.0,0.00019785,2]
[359203353,1745809832119,-500.0,0.00019785,2]
[359203355,1745809832128,-500.0,0.00019785,2]
[359203356,1745809832138,-405.51320495,0.00019785,2]
[359203357,1745809832147,-6015.31988748,0.00019786,2]
[359203358,1745809832160,-18234.87141252,0.00019786,2]
[359203359,1745809832171,-179.39902068,0.00019786,2]
[359203360,1745809832181,-43074.24078528,0.00019786,2]
[359203361,1745809832191,-490.99,0.00019786,2]
[359203362,1745809832200,-9999.99,0.00019786,2]
[359203364,1745809832209,-999.99,0.00019786,2]
[359203365,1745809832219,-4105.35,0.00019786,2]
[359203366,1745809832229,-150.99,0.00019786,2]
[359203368,1745809832239,-154.879438,0.00019786,2]
[359203370,1745809832248,-155.11895,0.00019786,2]
[359203372,1745809832257,-155.683302,0.00019786,2]
[359203373,1745809832266,-151.0,0.00019786,2]
[359203374,1745809832276,-151.0,0.00019786,2]
[359203375,1745809832287,-151.0,0.00019786,2]
[359203376,1745809832297,-151.0,0.00019786,2]
[359203377,1745809832307,-151.0,0.00019786,2]
[359203378,1745809832317,-151.0,0.00019786,2]
[359203379,1745809832326,-151.0,0.00019786,2]
[359203380,1745809832335,-153.533393,0.00019786,2]
[359203381,1745809832345,-151.0,0.00019786,2]
[359203382,1745809832355,-151.0,0.00019786,2]
[359203383,1745809832364,-157.178339,0.00019786,2]
[359203384,1745809832374,-151.0,0.00019786,2]
[359203385,1745809832383,-151.0,0.00019786,2]
[359203386,1745809832393,-153.648131,0.00019786,2]
[359203387,1745809832402,-151.0,0.00019786,2]
[359203388,1745809832411,-151.0,0.00019786,2]
[359203389,1745809832420,-151.0,0.00019786,2]
[359203390,1745809832430,-151.0,0.00019786,2]
[359203391,1745809832440,-153.445223,0.00019786,2]
[359203392,1745809832450,-151.0,0.00019786,2]
[359203393,1745809832459,-151.0,0.00019786,2]
[359203394,1745809832469,-151.0,0.00019786,2]
[359203395,1745809832479,-151.0,0.00019786,2]
[359203396,1745809832488,-151.0,0.00019786,2]
[359203397,1745809832497,-151.0,0.00019786,2]
[359203398,1745809832508,-321.961388,0.00019786,2]
[359203399,1745809832518,-321.961388,0.00019786,2]
[359203400,1745809832528,-321.961388,0.00019786,2]
[359203401,1745809832538,-321.961388,0.00019786,2]
[359203402,1745809832547,-204.14732352,0.00019786,2]
[359203403,1745809832702,-117.81406448,0.00019786,2]
[359203404,1745809832711,-321.961388,0.00019786,2]
[359203405,1745809832722,-151.0,0.00019786,2]
[359203406,1745809832731,-251.773117,0.00019786,2]
[359203407,1745809832740,-151.0,0.00019786,2]
[359203408,1745809832750,-151.0,0.00019786,2]
[359203409,1745809832759,-151.0,0.00019786,2]
[359203410,1745809832769,-155.179405,0.00019786,2]
[359203411,1745809832778,-156.219259,0.00019786,2]
[359203412,1745809832787,-218.053404,0.00019786,2]
[359203413,1745809832798,-151.0,0.00019786,2]
[359203414,1745809832807,-152.043349,0.00019786,2]
[359203415,1745809832817,-151.0,0.00019786,2]
[359203416,1745809832827,-151.0,0.00019786,2]
[359203417,1745809832837,-2464.4048,0.00019786,2]
[359203418,1745809832846,-7626.2075,0.00019786,2]
[359203419,1745809832856,-15885.06221829,0.00019786,2]
[359203420,1745809832868,-7503.62901673,0.00019786,2]
[359203421,1745809832883,-581.2685101,0.00019786,2]
[359203422,1745809832894,-4999.66205488,0.00019786,2]
[359203423,1745809832904,-7550.22264424,0.00019786,2]
[359203424,1745809832915,-4055.98735576,0.00019786,2]
[359203425,1745809832924,-2044.01264414,0.00019786,2]
[359203426,1745809832936,-1169.02735586,0.00019786,2]
[359203427,1745809832945,-4710.97264414,0.00019786,2]
[359203428,1745809832955,-1734.85735586,0.00019786,2]
[359203429,1745809832964,-1815.14264914,0.00019786,2]
[359203430,1745809832975,-1300.0,0.00019786,2]
[359203431,1745809832991,-918.01738556,0.00019786,2]
[359203432,1745809833002,-5966.8299653,0.00019786,2]
[359203433,1745809833011,-1881.42187585,0.00019786,2]
[359203434,1745809833022,-3408.02773957,0.00019786,2]
[359203435,1745809833033,-1852.53038458,0.00019786,2]
[359203436,1745809833042,-2197.46961542,0.00019786,2]
[359203437,1745809833054,-3224.07961605,0.00019786,2]
[359203438,1745809833066,-1541.07076853,0.00019786,2]
[359203439,1745809833075,-256.7,0.00019786,2]
[359203440,1745809833084,-151.0,0.00019791,2]
[359203441,1745809833094,-151.0,0.00019791,2]
[359203442,1745809833103,-151.0,0.00019791,2]
[359203443,1745809833112,-203.275324,0.00019791,2]
[359203444,1745809833122,-151.0,0.00019791,2]
[359203445,1745809833131,-157.372069,0.00019791,2]
[359203446,1745809833141,-151.0,0.00019791,2]
[359203447,1745809833151,-151.0,0.00019791,2]
[359203448,1745809833160,-321.961388,0.00019791,2]
[359203449,1745809833170,-321.961388,0.00019791,2]
[359203450,1745809833179,-151.0,0.00019791,2]
[359203451,1745809833189,-170.488593,0.00019791,2]
[359203452,1745809833199,-2162.0964,0.00019791,2]
[359203453,1745809833208,-154.709598,0.00019799,2]
[359203454,1745809833218,-2287.3877,0.000198,2]
[359203455,1745809833228,-1236.4863,0.000198,2]
[359203456,1745809833237,-10000.0,0.000198,2]
[359203457,1745809833247,-151.0,0.000198,2]
[359203458,1745809833256,-151.0,0.000198,2]
[359203459,1745809833265,-284.931088,0.000198,2]
[359203460,1745809833275,-321.961388,0.000198,2]
[359203461,1745809833284,-321.961388,0.000198,2]
[359203462,1745809833294,-151.0,0.0001981,2]
[359203463,1745809833303,-151.0,0.0001981,2]
[359203464,1745809833312,-151.0,0.0001981,2]
[359203465,1745809833321,-151.0,0.0001981,2]
[359203466,1745809833331,-152.23,0.00019827,2]
[359203467,1745809833340,-200.0,0.00019833,2]
[359203468,1745809833350,-151.0,0.00019837,2]
[359203469,1745809833360,-151.0,0.00019837,2]
[359203470,1745809833370,-151.0,0.00019837,2]
[359203471,1745809833380,-151.0,0.00019837,2]
[359203472,1745809833390,-151.0,0.00019837,2]
[359203473,1745809833400,-321.961388,0.00019837,2]
[359203474,1745809833409,-321.961388,0.00019837,2]
[359203475,1745809833420,-151.0,0.00019837,2]
[359203476,1745809833430,-2000.0,0.00019839,2]
[359203477,1745809833441,-200.0,0.00019839,2]
[359203478,1745809833450,-1891.68352412,0.0001984,2]
[359203479,1745809833473,-108.31647588,0.0001984,2]
[359203480,1745809833483,-2000.0,0.0001984,2]
[359203481,1745809833494,-200.0,0.0001984,2]
[359203482,1745809833504,-152.23,0.00019846,2]
[359203483,1745809833515,-154.499205,0.00019847,2]
[359203484,1745809833524,-154.762743,0.00019847,2]
[359203485,1745809833534,-250.043236,0.00019847,2]
[359203486,1745809833545,-237.24307268,0.00019847,2]
[359203488,1745809837679,-2372.83411277,0.00019757,2]
[359203489,1745809837691,-1735.52068113,0.00019781,2]
[359203490,1745809837734,-637.31343164,0.00019781,2]
[359203491,1745809837748,-179.39902066,0.00019785,2]
[359203492,1745809837758,-1403.46016093,0.00019786,2]
[359203493,1745809837768,-190.04006141,0.00019791,2]
[359203494,1745809837777,-12.80016332,0.00019847,2]
[359203495,1745809837787,-151.0,0.00019847,2]
[359203496,1745809837797,-151.0,0.00019847,2]
[359203497,1745809837809,-151.0,0.00019847,2]
[359203498,1745809837821,-151.0,0.00019847,2]
[359203499,1745809837831,-151.0,0.00019847,2]
[359203500,1745809837840,-151.0,0.00019847,2]
[359203501,1745809837850,-151.0,0.00019847,2]
[359203502,1745809837860,-321.961388,0.00019847,2]
[359203503,1745809837870,-321.961388,0.00019847,2]
[359203504,1745809837879,-151.0,0.00019847,2]
[359203505,1745809837889,-1511.36748153,0.00019847,2]
[359203506,1745809837900,-10988.63251847,0.00019847,2]
[359203507,1745809837910,-156.67604,0.0001985,2]
[359203508,1745809837921,-151.0,0.0001985,2]
[359203509,1745809837930,-152.23,0.00019855,2]
[359203510,1745809837941,-200.791948,0.00019856,2]
[359203511,1745809837951,-151.0,0.00019856,2]
[359203512,1745809837961,-321.961388,0.00019856,2]
[359203513,1745809837970,-321.961388,0.00019856,2]
[359203514,1745809837980,-151.0,0.00019856,2]
[359203515,1745809837989,-12500.0,0.00019856,2]
[359203516,1745809837999,-12500.0,0.00019865,2]
[359203517,1745809838008,-250.043236,0.00019865,2]
[359203518,1745809838017,-250.043236,0.00019865,2]
[359203519,1745809838028,-151.0,0.00019865,2]
[359203520,1745809838040,-159.154805,0.00019865,2]
[359203521,1745809838052,-155.153136,0.00019865,2]
[359203522,1745809838061,-151.0,0.00019865,2]
[359203523,1745809838071,-257.191124,0.00019865,2]
[359203524,1745809838080,-151.0,0.00019865,2]
[359203525,1745809838092,-151.0,0.00019865,2]
[359203526,1745809838101,-151.0,0.0001987,2]
[359203527,1745809838111,-321.961388,0.0001987,2]
[359203528,1745809838120,-321.961388,0.0001987,2]
[359203529,1745809838130,-151.0,0.0001987,2]
[359203530,1745809838139,-152.23,0.0001987,2]
[359203532,1745809838149,-152.23,0.00019872,2]
[359203534,1745809838158,-160.00852158,0.00019873,2]
[359203536,1745809838168,-500.0,0.00019873,2]
[359203538,1745809838177,-500.0,0.00019873,2]
[359203540,1745809838187,-500.95321139,0.00019873,2]
[359203542,1745809838197,-500.0,0.00019873,2]
[359203544,1745809838206,-500.0,0.00019873,2]
[359203546,1745809838215,-12500.0,0.00019874,2]
[359203548,1745809838225,-156.014757,0.00019874,2]
[359203550,1745809838235,-151.0,0.00019875,2]
[359203552,1745809838244,-321.961388,0.00019875,2]
[359203554,1745809838253,-321.961381,0.00019875,2]
[359203556,1745809838263,-151.0,0.00019875,2]
[359203558,1745809838273,-152.23,0.00019876,2]
[359203560,1745809838282,-1143.6133,0.0001988,2]
[359203562,1745809838291,-655.2016,0.0001988,2]
[359203564,1745809838300,-5048.3827,0.0001988,2]
[359203566,1745809838310,-4536.5735,0.0001988,2]
[359203568,1745809838320,-1000.0,0.0001988,2]
[359203569,1745809838330,-151.0,0.0001988,2]
[359203571,1745809838342,-250.043236,0.0001988,2]
[359203573,1745809838352,-250.043236,0.0001988,2]
[359203575,1745809838362,-151.0,0.0001988,2]
[359203577,1745809838372,-161.862759,0.0001988,2]
[359203579,1745809838382,-151.0,0.0001988,2]
[359203581,1745809838392,-151.0,0.0001988,2]
[359203584,1745809838402,-152.23,0.00019881,2]
[359203586,1745809838413,-154.665232,0.00019882,2]
[359203588,1745809838422,-154.155113,0.00019882,2]
[359203590,1745809838431,-151.0,0.00019882,2]
[359203592,1745809838442,-250.043236,0.00019882,2]
[359203594,1745809838451,-250.043236,0.00019882,2]
[359203596,1745809838460,-151.0,0.00019882,2]
[359203598,1745809838470,-235.989875,0.00019882,2]
[359203600,1745809838479,-255.394506,0.00019882,2]
[359203601,1745809838488,-158.246661,0.00019882,2]
[359203603,1745809838498,-12500.0,0.00019882,2]
[359203605,1745809838507,-12500.0,0.00019882,2]
[359203607,1745809838516,-175.407376,0.00019884,2]
[359203609,1745809838527,-250.043236,0.00019886,2]
[359203611,1745809838537,-250.043236,0.00019886,2]
[359203614,1745809838547,-220.53295173,0.00019886,2]
[359203616,1745809838557,-14542.5144,0.00019886,2]
[359203618,1745809838566,-500.0,0.00019886,2]
[359203620,1745809838575,-2511.8945,0.00019886,2]
[359203622,1745809838586,-250.043236,0.00019887,2]
[359203624,1745809838595,-250.043236,0.00019887,2]
[359203626,1745809838605,-250.043236,0.00019887,2]
[359203628,1745809838614,-250.043236,0.00019887,2]
[359203630,1745809838623,-851.764342,0.00019887,2]
[359203632,1745809838634,-250.043236,0.00019891,2]
[359203634,1745809838643,-250.043236,0.00019891,2]
[359203636,1745809838653,-851.764342,0.00019891,2]
[359203638,1745809838662,-4896.46177103,0.00019891,2]
[359203640,1745809838674,-5747.74016914,0.00019891,2]
[359203642,1745809838689,-775.44461026,0.00019891,2]
[359203645,1745809838700,-1080.35344957,0.00019891,2]
[359203647,1745809838710,-4909.69100968,0.00019891,2]
[359203649,1745809838721,-7590.30899032,0.00019891,2]
[359203651,1745809838731,-250.043236,0.00019896,2]
[359203653,1745809838741,-250.043236,0.00019896,2]
[359203655,1745809838751,-729.56642379,0.000199,2]
[359203657,1745809838761,-17316.5065,0.000199,2]
[359203659,1745809838770,-12500.0,0.000199,2]
[359203661,1745809838779,-225.0,0.000199,2]
[359203663,1745809838788,-2155.09372584,0.000199,2]
[359203665,1745809838798,-10784.56296474,0.000199,2]
[359203667,1745809838807,-250.043236,0.000199,2]
[359203669,1745809838816,-250.043246,0.000199,2]
[359203671,1745809838825,-584.80997473,0.000199,2]
[359203673,1745809838835,-851.764344,0.000199,2]
[359203675,1745809838844,-12500.0,0.000199,2]
[359203677,1745809838853,-505.7683501,0.000199,2]
[359203679,1745809838862,-1167.90084378,0.000199,2]
[359203681,1745809838872,-1000.0,0.000199,2]
[359203683,1745809838880,-1182.28173385,0.000199,2]
[359203706,1745809839073,-153.22092079,0.00019953,2]
[359203708,1745809839091,-639.8777322,0.00019972,2]
[359203710,1745809839100,-3460.1369159,0.00019972,2]
[359203713,1745809839111,-537.0946863,0.00019972,2]
[359203715,1745809839120,-17102.2905441,0.00019972,2]
[359203717,1745809839129,-3206.0,0.00019973,2]
[359203719,1745809839139,-500.0,0.00019973,2]
[359203721,1745809839148,-500.0,0.00019973,2]
[359203723,1745809839157,-2961.73150663,0.00019973,2]
[359203725,1745809839166,-206.06243087,0.00019979,2]
[359203727,1745809839176,-72004.74458854,0.0001998,2]
[359203729,1745809839185,-205.20717674,0.0001998,2]
[359203731,1745809839194,-558.0,0.00019985,2]
[359203733,1745809839203,-867.9491297,0.00019986,2]
[359203734,1745809839214,-1096.0205272,0.00019986,2]
[359203737,1745809839224,-1324.0919247,0.00019986,2]
[359203739,1745809839234,-1552.1633221,0.00019986,2]
[359203741,1745809839243,-3235.4511949,0.00019986,2]
[359203743,1745809839253,-3010.7654739,0.00019986,2]
[359203745,1745809839262,-2786.0797529,0.00019986,2]
[359203747,1745809839271,-2561.3940319,0.00019986,2]
[359203749,1745809839280,-502.2181742,0.00019986,2]
[359203751,1745809839289,-467.3416622,0.00019986,2]
[359203753,1745809839299,-432.4651501,0.00019986,2]
[359203755,1745809839308,-397.5886381,0.00019986,2]
[359203757,1745809839317,-14440.8197185,0.00019986,2]
[359203759,1745809839327,-11779.3488928,0.00019986,2]
[359203761,1745809839336,-9117.8780672,0.00019986,2]
[359203763,1745809839345,-6456.4072415,0.00019986,2]
[359203765,1745809839355,-17965.54268322,0.00019986,2]
[359203767,1745809839366,-11507.08391037,0.00019986,2]
[359203769,1745809839378,-212.10540631,0.00019986,2]
[359203771,1745809839389,-40.55123899,0.00019986,2]
[359203773,1745809839399,-1037.35002977,0.00019986,2]
[359203776,1745809839410,-364.04259866,0.00019986,2]
[359203778,1745809839422,-1296.4560435,0.00019986,2]
[359203780,1745809839433,-2281.87364935,0.00019986,2]
[359203783,1745809839448,-406.47147518,0.00019986,2]
[359203785,1745809839459,-608.0061,0.00019986,2]
[359203868,1745809840087,-522.04844118,0.00019886,2]
[359203874,1745809840195,-413.59166611,0.00019886,2]
[359203875,1745809840204,-245.53212072,0.00019986,2]
[359203876,1745809840215,-4860.48653887,0.00019986,2]
[359204189,1745809843294,-151.0,0.00019786,2]
[359204191,1745809843304,-168.537503,0.00019786,2]
[359204193,1745809843313,-2372.83411277,0.00019805,2]
[359204195,1745809843322,-623.76007152,0.00019986,2]
[359204197,1745809843331,-6184.62720399,0.00019986,2]
[359204461,1745809846044,-192.09518766,0.000199,2]
[359204463,1745809846054,-623.76007153,0.00019986,2]
[359204465,1745809846064,-184.14474081,0.00019986,2]
[359205213,1745809871119,150.0,0.00041095,120]
[359205214,1745809919548,150.223391,0.00039822,60]
[359205215,1745809920447,150.223391,0.0004109,31]
[359205216,1745809920751,150.223391,0.00040742,31]
[359205217,1745809922669,150.223391,0.0002,5]
[359205218,1745809922967,150.223391,0.0002,5]
[359205219,1745809923265,150.223391,0.00037811,49]
[359205220,1745809947091,18358.9685007,0.0004109,30]
[359205221,1745809960906,200.0,0.0003,90]
[359205222,1745810017633,1000.73,0.00041,90]
[359205223,1745810058122,152.0,0.00036658,30]
[359205224,1745810065095,2468.08,0.00018945,2]
[359205225,1745810091278,150.0,0.00018945,2]
[359205226,1745810136405,1516.2,0.00019332,2]
[359205227,1745810185883,150.0,0.00019107,2]
[359205228,1745810197775,3000.0,0.00038356,90]
[359205229,1745810198062,3000.0,0.00038356,90]
[359205230,1745810198377,3000.0,0.00038356,90]
[359205231,1745810198690,3000.0,0.00038356,90]
[359205232,1745810198974,3000.0,0.00038356,90]
[359205233,1745810199253,3000.0,0.00038356,90]
[359205234,1745810200110,3000.0,0.00038356,90]
[359205235,1745810200406,3000.0,0.00038356,90]
[359205236,1745810200696,3000.0,0.00038356,90]
[359205237,1745810200983,3000.0,0.00038356,90]
[359205238,1745810201280,3000.0,0.00038356,90]
[359205239,1745810201703,3000.0,0.00038356,90]
[359205240,1745810202064,3000.0,0.00038356,90]
[359205241,1745810202354,3000.0,0.00038356,90]
[359205242,1745810202651,1825.596652,0.00038356,90]
[359205243,1745810228969,3043.20979993,0.00041096,30]
[359205244,1745810259600,250.0,0.00018945,2]
[359205245,1745810262351,400.0,0.00041095,30]
[359205246,1745810308444,1000.0,0.00019126,2]
[359205247,1745810326791,480.0,0.00041095,30]
[359205248,1745810327039,480.0,0.00041095,30]
[359205249,1745810327274,480.0,0.00041095,30]
[359205250,1745810327524,480.0,0.00041095,30]
[359205251,1745810327799,480.0,0.00041095,30]
[359205252,1745810328037,480.0,0.00041095,30]
[359205253,1745810328314,480.0,0.00041095,30]
[359205254,1745810328595,480.0,0.00041095,30]
[359205255,1745810328880,480.0,0.00041095,30]
[359205256,1745810329199,480.0,0.00041095,30]
[359205257,1745810329239,250.0,0.00017,2]